bitfinex/quotes_ETHUSD_20250623
["timestamp","ask_amount","ask_price","bid_price","bid_amount"]
[1750689707707,10.036,2282.4,2282.2,4.38173246]
[1750689707908,12.06501737,2282.9,2282.2,4.38161675]
[1750689708119,12.06501737,2282.9,2281.6,10.0]
[1750689708120,1.25050726,2282.8,2281.8,0.8977]
[1750689708319,12.06501737,2282.9,2281.9,4.38231298]
[1750689708525,10.0,2282.8,2282.1,4.38184182]
[1750689708728,10.0,2282.8,2282.3,4.38146978]
[1750689709041,10.96819761,2282.6,2282.0,4.38210872]
[1750689709343,10.96819761,2282.6,2282.2,4.38165909]
[1750689709489,10.96819761,2282.6,2281.9,4.38231298]
[1750689709686,10.96819761,2282.6,2282.0,4.3821091]
[1750689710038,10.96819761,2282.6,2282.1,4.38191425]
[1750689710739,22.06501737,2282.9,2281.9,0.5304613]
[1750689710942,22.06501737,2282.9,2282.1,4.38185277]
[1750689710943,2.24,2282.8,2282.1,4.38185277]
[1750689711143,2.24,2282.8,2282.0,4.38203304]
[1750689711456,10.96819761,2282.6,2281.9,4.38220077]
[1750689711661,10.96819761,2282.6,2282.0,4.38211647]
[1750689711815,10.96819761,2282.6,2281.9,4.38220077]
[1750689711816,10.96819761,2282.6,2282.1,4.38188816]
[1750689712414,13.33681976,2282.9,2281.8,0.9223]
[1750689712761,10.034,2283.0,2282.5,4.3810433]
[1750689713069,10.96819761,2283.5,2282.8,4.38041487]
[1750689713261,7.76,2283.7,2282.8,4.38041487]
[1750689713262,7.76,2283.7,2283.1,4.37986601]
[1750689713416,7.76,2283.7,2283.1,4.37991394]
[1750689713616,12.43925526,2283.6,2283.1,4.37991394]
[1750689713827,12.43925526,2283.6,2282.8,0.923]
[1750689714069,10.0,2283.6,2283.2,4.37971003]
[1750689714268,7.76,2283.7,2283.2,4.37971003]
[1750689715366,10.0,2283.6,2283.0,4.38020106]
[1750689715558,10.96819761,2283.5,2282.8,0.923]
[1750689715759,10.96819761,2283.5,2283.0,4.38017048]
[1750689715926,10.96819761,2283.5,2283.1,4.37999239]
[1750689716129,10.0,2283.6,2283.1,4.37999239]
[1750689716438,10.96819761,2283.2,2282.2,11.4411]
[1750689716641,13.63866175,2283.6,2281.9,0.9121]
[1750689716642,10.96819761,2282.7,2281.9,0.9121]
[1750689716824,10.96819761,2282.7,2281.5,0.43303046]
[1750689716825,7.76,2282.6,2282.0,4.38203798]
[1750689717020,10.96819761,2282.4,2281.9,4.38221484]
[1750689717443,10.96819761,2282.4,2281.6,0.9121]
[1750689717614,12.84101737,2282.4,2281.9,4.38229975]
[1750689717954,20.60101737,2282.4,2281.8,4.38238265]
[1750689718528,20.60101737,2282.4,2281.7,4.38261611]
[1750689718726,10.96819761,2281.8,2281.0,0.9633]
[1750689718965,12.06501737,2281.8,2281.1,4.74970408]
[1750689719139,12.06501737,2281.8,2281.2,0.36594012]
[1750689720263,10.96819761,2281.8,2281.3,4.38346407]
[1750689720469,10.0,2282.0,2281.4,0.36590804]
[1750689720766,20.03,2282.0,2281.4,0.36590804]
[1750689721277,10.96819761,2281.8,2281.4,0.36590804]
[1750689721478,20.03,2282.0,2281.4,0.36590804]
[1750689721479,1.15181976,2281.7,2281.4,0.36590804]
[1750689721777,0.55,2281.9,2281.4,0.36590804]
[1750689721980,10.96819761,2281.8,2281.4,0.36590804]
[1750689722656,10.96819761,2281.8,2281.2,4.38357825]
[1750689723493,10.96819761,2281.8,2281.3,4.38345628]
[1750689724061,10.96819761,2281.8,2281.2,4.38356016]
[1750689724265,12.74228454,2281.8,2281.2,4.38356016]
[1750689724740,12.74228454,2281.8,2281.3,4.38346404]
[1750689724941,20.60101737,2282.4,2281.1,4.38384989]
[1750689725141,10.0,2282.3,2281.4,4.38315157]
[1750689725342,10.96819761,2281.8,2281.1,4.38384989]
[1750689725556,10.96819761,2281.8,2281.2,4.38353313]
[1750689725752,10.96819761,2281.8,2281.3,4.38344057]
[1750689725995,10.96819761,2281.8,2281.1,4.38384989]
[1750689726279,17.76,2282.3,2281.5,4.38289485]
[1750689726483,17.76,2282.3,2281.7,4.38266836]
[1750689726684,10.96819761,2281.8,2281.3,4.38344814]
[1750689726843,10.96819761,2282.1,2281.1,7.788]
[1750689727047,20.96819761,2282.1,2281.6,4.38279161]
[1750689727359,24.71822007,2282.1,2281.5,4.38298375]
[1750689728279,24.71822007,2282.1,2281.1,12.17183724]
[1750689728483,10.0,2281.7,2281.0,0.9633]
[1750689728657,10.0,2281.7,2281.2,4.38352774]
[1750689729445,10.96819761,2281.8,2281.5,4.38303961]
[1750689729648,10.96819761,2281.8,2281.0,0.9633]
[1750689729888,10.96819761,2281.8,2281.2,4.38365372]
[1750689730393,10.96819761,2281.5,2281.1,4.38371178]
[1750689730555,10.96819761,2281.5,2281.2,4.38365519]
[1750689730888,10.96819761,2281.5,2281.0,4.38398656]
[1750689730889,10.96819761,2281.5,2281.0,4.38394907]
[1750689731050,10.96819761,2281.5,2281.1,4.38384496]
[1750689731381,10.96819761,2281.5,2281.1,4.38374201]
[1750689731881,10.96819761,2281.5,2281.2,4.3836511]
[1750689732067,10.96819761,2281.5,2281.3,4.38344555]
[1750689732261,18.72819761,2281.8,2281.3,4.38344555]
[1750689732467,21.87911737,2281.8,2280.9,4.38420483]
[1750689732787,21.87911737,2281.8,2281.2,4.38350383]
[1750689732948,21.87911737,2281.8,2281.0,4.38399927]
[1750689733149,10.96819761,2281.5,2281.1,4.38384847]
[1750689733348,10.96819761,2281.5,2281.2,4.3836046]
[1750689733556,10.96819761,2281.5,2281.1,4.3837156]
[1750689734088,21.87911737,2281.8,2281.2,4.38364021]
[1750689734253,10.91091976,2281.8,2281.4,4.38319689]
[1750689734688,10.91091976,2281.8,2281.3,4.38334396]
[1750689734892,7.76,2281.8,2281.4,4.38326714]
[1750689735255,7.76,2281.8,2281.2,4.38356065]
[1750689735683,7.76,2281.8,2281.2,4.38350372]
[1750689735856,10.96819761,2281.7,2280.7,5.60340125]
[1750689736072,7.76,2281.6,2281.1,4.38375974]
[1750689736582,7.76,2281.6,2281.1,4.3837529]
[1750689736757,7.76,2281.6,2281.0,4.38392982]
[1750689737158,7.76,2281.6,2280.9,4.38423429]
[1750689737461,2.231,2282.5,2281.5,10.9225]
[1750689737658,10.96819761,2282.6,2281.5,10.9225]
[1750689737659,7.76,2282.4,2282.0,4.38197941]
[1750689737916,10.96819761,2282.6,2281.6,10.57752615]
[1750689737917,7.76,2282.5,2281.6,10.57752615]
[1750689738075,7.76,2282.5,2282.0,4.38201786]
[1750689738268,10.96819761,2282.8,2281.7,7.783]
[1750689738269,7.76,2282.7,2281.9,4.38231298]
[1750689738459,7.76,2282.8,2282.5,4.38106233]
[1750689738662,10.0,2283.1,2282.5,4.38106233]
[1750689738889,13.87411976,2283.1,2282.4,4.38135296]
[1750689739075,13.87411976,2283.1,2282.3,12.16347387]
[1750689739076,10.96819761,2282.7,2282.2,4.38163288]
[1750689739774,10.96819761,2282.7,2281.9,0.9329]
[1750689739982,10.96819761,2282.7,2282.1,4.38192507]
[1750689740177,10.96819761,2282.7,2282.0,4.38204001]
[1750689740394,10.96819761,2282.7,2282.1,4.38191915]
[1750689741120,10.96819761,2282.7,2282.2,4.38172543]
[1750689741580,10.96819761,2282.7,2282.3,4.38154329]
[1750689741765,13.87411976,2283.1,2282.0,0.531494]
[1750689741766,12.231,2282.9,2282.2,4.38164704]
[1750689741966,12.231,2282.9,2282.0,0.531494]
[1750689742165,10.96819761,2282.7,2281.9,5.31511429]
[1750689742365,10.96819761,2282.7,2282.1,4.38175936]
[1750689742572,10.96819761,2282.7,2282.0,4.38203123]
[1750689743169,10.96819761,2282.7,2282.0,4.38203271]
[1750689743567,10.96819761,2282.7,2282.1,4.38191609]
[1750689743907,7.76,2282.7,2282.6,4.38096907]
[1750689744204,2.66098756,2283.2,2282.8,4.38057485]
[1750689744205,7.76,2283.1,2282.8,4.38057485]
[1750689744609,7.76,2283.2,2282.9,4.38028533]
[1750689744794,20.95819761,2283.6,2282.5,5.30105413]
[1750689744980,20.95819761,2283.6,2282.8,4.38047367]
[1750689745183,23.83171737,2283.6,2282.9,4.38038439]
[1750689745399,10.0,2283.5,2282.9,4.38038439]
[1750689745597,10.0,2283.5,2282.8,4.38050992]
[1750689745871,10.96819761,2282.9,2282.2,5.2780241]
[1750689746182,18.72819761,2282.9,2282.3,4.3814372]
[1750689746589,18.72819761,2282.9,2282.2,5.27808728]
[1750689746791,7.76,2282.9,2282.5,4.38106026]
[1750689747121,7.76,2282.9,2282.4,4.38135296]
[1750689747122,7.76,2282.9,2282.4,4.38133356]
[1750689747305,7.76,2282.9,2282.5,4.38109686]
[1750689750481,10.96819761,2283.6,2282.9,4.38032721]
[1750689750682,10.96819761,2283.6,2283.0,4.38011715]
[1750689750979,10.96819761,2283.6,2283.0,4.38010603]
[1750689751179,10.96819761,2283.6,2283.1,4.37989963]
[1750689751379,12.32969935,2283.6,2283.1,4.37989963]
[1750689751576,12.32969935,2283.6,2283.2,4.37979704]
[1750689751809,2.09681976,2283.7,2283.0,4.38010502]
[1750689752015,10.96819761,2283.3,2282.8,4.38057226]
[1750689752181,10.96819761,2283.3,2282.9,4.38037375]
[1750689752514,10.96819761,2283.3,2282.9,4.38020976]
[1750689752713,7.76,2283.6,2282.9,0.43802098]
[1750689753016,7.76,2283.6,2283.5,4.37924239]
[1750689753186,9.99,2284.1,2283.7,4.37876037]
[1750689753388,9.99,2284.1,2283.7,4.37876866]
[1750689753698,9.99,2284.1,2283.8,4.37865464]
[1750689753699,10.0,2284.0,2283.8,4.37865464]
[1750689753870,10.0,2284.0,2283.6,4.37896922]
[1750689754314,13.09581976,2284.0,2283.1,12.15000963]
[1750689754519,7.76,2283.9,2283.5,4.3791519]
[1750689755118,7.76,2283.9,2283.7,4.37874356]
[1750689755411,7.76,2283.9,2283.5,4.37909735]
[1750689755612,18.72819761,2283.9,2283.3,4.37954045]
[1750689755992,10.96819761,2283.6,2283.1,4.37988338]
[1750689756182,18.72819761,2283.6,2283.2,4.37978869]
[1750689756378,7.76,2283.6,2283.1,4.38000963]
[1750689756581,7.76,2283.6,2283.5,4.37924239]
[1750689757220,7.76,2283.6,2283.0,0.8902]
[1750689757221,7.76,2283.6,2283.3,4.37946319]
[1750689757413,7.76,2283.6,2283.4,4.37930914]
[1750689757615,7.76,2283.6,2283.4,4.37932509]
[1750689757917,7.76,2283.6,2283.4,4.37940771]
[1750689758128,7.76,2283.6,2283.5,4.37924239]
[1750689758895,10.0,2284.0,2283.8,4.37849354]
[1750689759220,9.979,2284.1,2283.8,4.37849354]
[1750689759423,7.76,2284.1,2283.6,0.8827]
[1750689759732,8.97433552,2284.1,2283.5,12.14408834]
[1750689759914,8.97433552,2284.1,2283.4,4.37935554]
[1750689760225,8.97433552,2284.1,2283.4,12.14441699]
[1750689760226,10.96819761,2283.9,2283.4,12.14441699]
[1750689760427,10.96819761,2283.9,2283.2,7.765]
[1750689760721,7.76,2283.8,2283.3,4.37952989]
[1750689761082,7.76,2283.8,2283.3,4.3795371]
[1750689761297,7.76,2283.8,2283.2,12.14465073]
[1750689761527,7.76,2283.8,2283.2,7.765]
[1750689761727,7.76,2283.8,2283.3,4.37959339]
[1750689762026,7.76,2283.8,2283.4,4.37935476]
[1750689762398,7.76,2283.8,2283.2,7.765]
[1750689762595,9.63281976,2283.8,2283.2,4.37973587]
[1750689762802,9.63281976,2283.8,2283.2,4.37969398]
[1750689763000,9.63281976,2283.8,2283.4,4.37932424]
[1750689763191,7.76,2283.8,2283.4,4.37932424]
[1750689763390,7.76,2283.8,2283.1,12.14289418]
[1750689763599,10.96819761,2283.6,2283.0,8.6333]
[1750689763937,10.0,2283.2,2283.0,0.3656516]
[1750689764137,20.40681976,2283.1,2283.0,0.3656516]
[1750689765830,22.62581976,2283.1,2283.0,0.3656516]
[1750689767006,20.40681976,2283.1,2283.0,0.3656516]
[1750689768635,20.84313492,2283.1,2283.0,0.3656516]
[1750689769121,23.06213492,2283.1,2283.0,0.3656516]
[1750689769639,17.76,2283.1,2283.0,0.3656516]
[1750689769826,18.31,2283.1,2283.0,0.3656516]
[1750689770441,18.7492452,2283.1,2283.0,0.3656516]
[1750689771921,26.5092452,2283.1,2283.0,0.3656516]
[1750689773215,10.55,2283.0,2281.6,0.8862]
[1750689773444,10.96819761,2282.0,2280.8,0.8862]
[1750689773756,28.70419761,2282.0,2281.1,4.38370752]
[1750689773939,28.70419761,2282.0,2281.3,4.38330973]
[1750689774138,7.76,2282.0,2281.7,0.8437]
[1750689774437,9.977,2282.7,2281.7,0.8437]
[1750689774623,10.0,2282.6,2282.0,4.38198881]
[1750689774948,10.0,2282.6,2282.2,4.38171785]
[1750689775114,10.0,2282.6,2282.3,5.28133239]
[1750689775314,2.28740876,2282.7,2282.3,5.28126194]
[1750689775527,10.06840876,2282.7,2282.3,0.8998]
[1750689776326,10.06840876,2282.7,2282.2,4.38172643]
[1750689776528,10.06840876,2282.7,2282.1,5.24338078]
[1750689776930,10.06840876,2282.7,2282.1,5.24332898]
[1750689777124,0.06956061,2282.6,2282.1,5.24332898]
[1750689777350,0.06956061,2282.6,2282.2,4.38172126]
[1750689777544,0.06956061,2282.6,2282.3,4.38149748]
[1750689777723,0.06956061,2282.6,2282.4,0.43814975]
[1750689778129,0.06956061,2282.6,2282.4,4.81944966]
[1750689778447,0.06956061,2282.6,2282.5,5.242661]
[1750689778654,10.7644462,2283.1,2282.5,0.8615]
[1750689778826,10.7644462,2283.1,2283.0,5.24170148]
[1750689779648,9.8531462,2283.1,2283.0,5.24170148]
[1750689779849,9.8531462,2283.1,2283.0,5.67689985]
[1750689780218,9.8531462,2283.1,2283.0,5.24170148]
[1750689781455,9.8531462,2283.1,2283.0,15.24170148]
[1750689783355,9.74646556,2283.1,2283.0,15.24170148]
[1750689783658,8.83516556,2283.1,2283.0,15.24170148]
[1750689785647,8.83516556,2283.1,2283.0,25.19970148]
[1750689786366,5.83529765,2283.1,2283.0,25.19970148]
[1750689786564,5.79677362,2283.1,2283.0,25.19970148]
[1750689787228,3.0867,2284.6,2284.0,0.9065]
[1750689787427,0.8787,2284.6,2284.4,4.37740074]
[1750689787647,0.8787,2284.6,2284.0,13.03171498]
[1750689787648,0.867,2284.9,2284.7,4.37680674]
[1750689787854,0.867,2284.9,2284.7,4.37694226]
[1750689788057,0.867,2284.9,2284.8,4.3767507]
[1750689788355,0.867,2284.9,2284.6,12.1240973]
[1750689788356,0.867,2284.9,2284.7,4.37683653]
[1750689788526,1.4537,2284.9,2282.9,10.96819761]
[1750689788729,10.96819761,2284.7,2284.3,4.37755679]
[1750689788957,1.4537,2284.9,2284.3,4.37769151]
[1750689789147,1.4537,2284.9,2284.4,4.37737135]
[1750689789644,18.17519761,2285.0,2284.5,7.745]
[1750689789645,5.0,2285.0,2284.5,7.745]
[1750689789845,5.0,2285.0,2284.9,4.37655914]
[1750689790039,5.0,2285.0,2284.8,4.37666439]
[1750689790239,5.0,2285.0,2284.9,4.37655914]
[1750689790536,5.0,2285.0,2284.8,4.37666439]
[1750689790537,5.0,2285.0,2284.8,4.3766544]
[1750689790732,5.0,2285.0,2284.9,4.37655914]
[1750689791044,5.0,2285.0,2284.8,4.3765993]
[1750689791245,5.0,2285.0,2284.8,7.744]
[1750689791559,5.0,2285.0,2284.8,12.12065979]
[1750689791763,5.0,2285.0,2284.9,4.37655914]
[1750689792425,5.0,2285.0,2284.7,4.37681868]
[1750689792626,6.3281,2285.0,2284.7,7.742]
[1750689792960,6.3281,2285.0,2283.6,14.90290381]
[1750689792961,0.8281,2284.8,2284.0,4.37813865]
[1750689793255,10.96819761,2284.5,2283.9,4.37839439]
[1750689793556,0.8281,2284.3,2283.9,12.11939286]
[1750689793760,0.8281,2284.7,2283.9,7.741]
[1750689793946,0.8281,2284.7,2284.2,4.37777836]
[1750689794148,0.8281,2284.7,2283.9,7.741]
[1750689794459,1.91091,2284.7,2284.2,4.37782166]
[1750689795031,1.91091,2284.7,2284.3,4.37761512]
[1750689795241,1.91091,2284.7,2284.4,4.3774926]
[1750689795443,1.91091,2284.7,2284.3,4.3775998]
[1750689796162,0.8281,2284.7,2284.5,4.37715748]
[1750689796461,13.26,2285.0,2284.5,4.37731772]
[1750689796667,10.0,2284.9,2284.5,4.37732545]
[1750689796967,10.0,2284.9,2284.5,7.738]
[1750689797170,2.326,2284.8,2284.5,7.738]
[1750689797362,2.326,2284.8,2284.5,12.11531418]
[1750689797564,10.0,2284.9,2284.6,4.37712322]
[1750689797867,10.0,2284.9,2284.5,7.738]
[1750689798036,10.0,2284.9,2284.3,4.37760267]
[1750689798236,10.0,2284.9,2284.4,12.11551071]
[1750689798432,10.96819761,2284.5,2283.7,5.23735886]
[1750689798651,0.8806,2284.3,2283.9,4.3783322]
[1750689798849,1.09681976,2284.4,2283.8,4.37866713]
[1750689799035,0.8806,2284.5,2284.0,7.737]
[1750689799241,0.8806,2284.5,2283.9,4.37837506]
[1750689799469,10.0,2284.4,2283.7,4.37878122]
[1750689799808,10.0,2284.1,2283.5,4.37907959]
[1750689799946,10.0,2284.1,2283.6,4.37896543]
[1750689800451,10.0,2284.1,2283.5,12.11523007]
[1750689800452,10.0,2284.1,2283.5,7.736]
[1750689800646,10.0,2284.1,2283.5,7.73598339]
[1750689800844,10.0,2284.1,2283.6,4.3789139]
[1750689801150,0.8535,2284.0,2283.6,4.37894758]
[1750689801350,0.8535,2284.0,2283.5,7.736]
[1750689801673,10.8549,2283.7,2283.0,4.38004636]
[1750689801881,0.905,2283.3,2282.6,4.38087664]
[1750689802087,10.0,2283.1,2282.8,4.38041725]
[1750689802289,10.0,2283.1,2282.7,4.38070103]
[1750689802496,0.905,2283.3,2282.9,4.38027635]
[1750689802639,0.905,2283.3,2282.8,4.38047291]
[1750689803150,0.905,2283.3,2282.8,12.11447968]
[1750689803367,10.0,2283.2,2282.3,0.44854903]
[1750689803566,20.96819761,2283.2,2282.6,4.38079366]
[1750689804782,10.8465,2282.8,2282.0,4.38199037]
[1750689804984,10.8465,2282.8,2281.9,11.3809]
[1750689804985,0.8465,2282.8,2282.1,12.11686681]
[1750689805283,0.8465,2282.8,2282.5,4.38107358]
[1750689805982,0.8465,2282.8,2282.4,4.38131321]
[1750689806182,0.8465,2282.8,2282.4,4.38126965]
[1750689806484,0.8465,2282.8,2282.7,4.38077714]
[1750689806658,0.8465,2282.8,2282.2,5.24263384]
[1750689806854,0.8465,2282.8,2282.5,4.38106247]
[1750689807184,0.8465,2282.8,2282.6,4.38094715]
[1750689807751,0.8465,2282.8,2282.5,12.11511196]
[1750689807982,0.8465,2282.8,2282.6,4.380965]
[1750689808286,0.8465,2282.8,2282.5,7.734]
[1750689808684,0.8465,2282.8,2282.5,12.11513648]
[1750689808986,0.9056,2283.1,2282.6,4.38087423]
[1750689809182,10.96819761,2282.9,2281.3,4.90835256]
[1750689809383,10.9056,2282.8,2282.3,4.38152136]
[1750689809585,0.9056,2282.8,2282.1,7.733]
[1750689809773,0.9056,2282.8,2282.5,4.38105203]
[1750689809964,0.9056,2282.8,2282.4,4.38123889]
[1750689810290,0.9056,2282.8,2282.1,8.5946]
[1750689810464,0.9056,2282.8,2282.4,4.38127622]
[1750689810660,0.9056,2282.8,2282.1,12.97650769]
[1750689810860,0.9056,2282.8,2282.4,4.3812703]
[1750689811352,0.9056,2282.8,2282.2,7.733]
[1750689811682,0.9056,2282.8,2282.5,4.38112479]
[1750689812495,0.9056,2282.8,2282.3,4.38154493]
[1750689812785,0.9056,2282.8,2282.7,4.38077714]
[1750689812961,10.0,2282.9,2282.5,4.38102532]
[1750689813165,10.0,2282.9,2282.6,4.38094101]
[1750689813484,10.0,2282.9,2282.5,7.731]
[1750689813485,10.0,2282.9,2281.9,5.69924478]
[1750689813690,0.8658,2282.8,2282.3,2.208]
[1750689813993,0.8658,2282.8,2282.3,6.58953904]
[1750689814658,0.8658,2282.8,2281.9,0.8679]
[1750689814857,7.76,2282.7,2282.3,4.38152374]
[1750689815287,7.76,2282.7,2282.6,4.38096907]
[1750689816652,0.9016,2283.5,2283.1,4.37998554]
[1750689816956,0.9016,2283.5,2283.2,4.37981154]
[1750689817355,0.9016,2283.5,2283.3,4.379553]
[1750689817588,7.76,2283.8,2283.5,4.3791565]
[1750689817589,8.6697,2283.8,2283.5,4.3791565]
[1750689817884,10.0,2283.7,2283.4,4.37931594]
[1750689818077,8.6697,2283.8,2283.5,4.37921015]
[1750689818592,10.0,2283.7,2283.5,4.37913049]
[1750689818779,10.0,2283.7,2283.1,7.73]
[1750689818974,10.0,2283.7,2283.2,9.925]
[1750689819289,8.6697,2283.8,2283.4,4.37933887]
[1750689819488,10.0,2283.7,2283.4,4.37933887]
[1750689819799,10.0,2283.7,2283.3,4.37945345]
[1750689819800,10.0,2283.7,2283.3,4.3795185]
[1750689820006,10.0,2283.7,2283.4,4.37941771]
[1750689820408,10.0,2283.7,2283.3,4.3795185]
[1750689820620,10.0,2283.7,2283.3,4.37946054]
[1750689820992,10.0,2283.7,2283.5,4.37911622]
[1750689821510,10.0,2283.7,2283.4,4.37931822]
[1750689821678,10.0,2283.7,2283.3,4.37961903]
[1750689822078,10.0,2283.7,2283.4,4.37942148]
[1750689822526,10.0,2283.7,2283.5,4.37924059]
[1750689822717,10.0,2283.7,2283.5,4.37916781]
[1750689823199,10.0,2283.7,2283.4,4.3793357]
[1750689823500,10.0,2283.7,2283.4,4.37932948]
[1750689823703,10.0,2283.7,2283.3,4.37955685]
[1750689824107,10.0,2283.7,2283.5,4.37922691]
[1750689824307,10.0,2283.7,2283.4,4.37939456]
[1750689824308,10.0,2283.7,2283.4,4.37931504]
[1750689824819,10.0,2283.7,2283.2,4.3797288]
[1750689825024,10.0,2283.7,2283.4,7.725]
[1750689825184,10.0,2283.7,2283.4,12.1043345]
[1750689825379,10.0,2283.7,2283.5,4.37923729]
[1750689825679,10.0,2283.7,2283.4,12.10433153]
[1750689826279,10.0,2283.7,2283.5,4.37923427]
[1750689826478,10.0,2283.7,2283.6,4.37905062]
[1750689827647,10.0,2283.7,2283.5,4.37913364]
[1750689827948,10.0,2283.7,2283.4,12.10232648]
[1750689828648,10.0,2283.7,2283.1,0.9021]
[1750689828649,0.9292,2283.6,2283.1,0.9021]
[1750689828863,14.61747505,2283.6,2283.4,7.721]
[1750689829018,10.0,2283.5,2282.3,0.9363]
[1750689829217,13.68827505,2283.3,2282.7,4.38064188]
[1750689829452,10.9144,2283.2,2282.3,0.9363]
[1750689829635,13.68827505,2283.0,2282.4,12.10118925]
[1750689829812,13.68827505,2283.0,2282.4,12.10127653]
[1750689830014,0.9144,2282.9,2282.4,7.72]
[1750689830215,0.9144,2282.9,2282.4,4.38133141]
[1750689830438,10.9144,2282.9,2282.3,7.72]
[1750689830969,10.96099697,2282.7,2282.3,12.10146141]
[1750689831416,10.96099697,2282.7,2282.3,4.38146141]
[1750689831616,0.9144,2282.8,2282.4,4.38124741]
[1750689831820,0.9144,2282.8,2282.5,4.38111847]
[1750689832022,0.9144,2282.8,2282.6,4.38082979]
[1750689832319,10.8644,2283.5,2282.6,7.719]
[1750689832517,2.27461475,2283.5,2282.9,4.38037661]
[1750689832839,10.0,2283.4,2282.8,4.38049006]
[1750689833037,10.0,2283.4,2282.8,4.38045117]
[1750689833249,0.8644,2283.5,2282.7,7.718]
[1750689833415,0.8644,2283.5,2283.2,4.37972268]
[1750689833613,0.8644,2283.5,2283.2,4.3797934]
[1750689833813,0.8644,2283.5,2283.1,12.09790356]
[1750689834253,0.8644,2283.5,2283.1,7.718]
[1750689834421,10.0,2283.4,2283.0,7.718]
[1750689834621,10.0,2283.4,2283.0,12.09819325]
[1750689834849,10.0,2283.4,2283.0,7.718]
[1750689835015,0.8874,2283.3,2282.7,12.09869679]
[1750689835332,10.96099697,2283.2,2282.7,12.09877712]
[1750689835533,13.14583667,2283.2,2282.7,12.09877712]
[1750689835718,13.14583667,2283.2,2282.7,12.09862433]
[1750689836013,13.14583667,2283.2,2282.8,4.38050723]
[1750689836421,10.0,2283.5,2282.8,4.38049063]
[1750689836636,10.0,2283.5,2282.9,7.717]
[1750689836835,0.9214,2283.4,2282.9,4.3803917]
[1750689837052,0.9214,2283.4,2282.9,4.38029391]
[1750689837663,0.9214,2283.4,2283.0,4.38017445]
[1750689837957,0.9214,2283.4,2282.8,4.38049727]
[1750689838163,3.1096397,2283.4,2282.9,4.38025616]
[1750689838359,10.8696397,2283.4,2282.8,4.38047683]
[1750689838563,10.0,2283.2,2282.8,4.38047683]
[1750689838729,10.0,2283.2,2282.9,4.38024247]
[1750689838930,10.0,2283.2,2283.0,4.38019637]
[1750689839132,10.9244,2283.7,2283.2,4.37969044]
[1750689839333,13.8889397,2283.7,2283.3,4.37955306]
[1750689839548,13.8889397,2283.7,2283.0,7.715]
[1750689839767,13.8889397,2283.7,2283.1,4.37992574]
[1750689840059,13.8889397,2283.7,2283.0,7.715]
[1750689840266,13.8889397,2283.7,2283.2,4.37972863]
[1750689840464,0.9443012,2283.6,2283.2,4.37972863]
[1750689841368,0.9443012,2283.6,2283.3,4.37961302]
[1750689841567,0.9443012,2283.6,2283.2,4.37970367]
[1750689841777,0.9443012,2283.6,2283.1,4.37989597]
[1750689841943,0.9443012,2283.6,2283.1,12.09389597]
[1750689842333,0.9443012,2283.6,2283.2,4.37981191]
[1750689842543,13.8889397,2283.7,2283.2,4.37972048]
[1750689842955,13.8889397,2283.7,2283.1,12.09392435]
[1750689843152,13.8889397,2283.7,2283.2,4.37981109]
[1750689843673,13.8889397,2283.7,2283.3,4.37959102]
[1750689843877,10.9244,2283.7,2283.2,4.3797138]
[1750689844051,10.9244,2283.7,2283.3,4.37961465]
[1750689844377,10.0,2283.5,2283.2,4.3796987]
[1750689844582,10.0,2283.5,2283.3,4.37962359]
[1750689844774,10.0,2283.5,2283.2,4.3797016]
[1750689844978,10.0,2283.5,2282.6,5.32435039]
[1750689844979,0.8773,2283.4,2282.6,5.32435039]
[1750689845279,10.0,2283.2,2282.4,0.9179]
[1750689845477,10.96099697,2283.0,2282.3,7.711]
[1750689845681,10.96099697,2283.0,2282.5,4.38110759]
[1750689846281,10.0,2282.9,2282.3,4.3814322]
[1750689846482,7.76,2282.8,2282.4,4.38127509]
[1750689846646,7.76,2282.8,2282.3,4.38146898]
[1750689846841,11.90019697,2282.7,2282.2,4.38162732]
[1750689847042,10.0,2282.6,2281.8,5.25288503]
[1750689847256,10.0,2282.6,2282.2,4.38173467]
[1750689847478,10.0,2282.6,2282.1,4.38181131]
[1750689847881,21.90019697,2282.7,2282.2,4.38169654]
[1750689848054,10.0,2282.6,2282.2,4.38169654]
[1750689848261,10.0,2282.6,2282.2,4.38160071]
[1750689848574,10.0,2282.6,2281.9,9.894]
[1750689848994,10.0,2282.6,2282.5,4.381161]
[1750689849162,10.0,2282.6,2282.4,4.38129959]
[1750689849163,7.76,2282.9,2282.7,4.38063627]
[1750689849479,17.76,2282.9,2282.8,4.38058524]
[1750689851081,17.76,2282.9,2282.6,4.38084376]
[1750689851377,17.76,2282.9,2282.7,4.38075034]
[1750689851593,17.76,2282.9,2282.8,4.38058524]
[1750689852814,7.76,2282.9,2282.8,4.38058524]
[1750689853310,0.9521,2283.3,2283.0,4.38009579]
[1750689853504,0.9521,2283.3,2282.9,7.707]
[1750689853913,0.9521,2283.3,2282.9,12.08737745]
[1750689854302,0.9521,2283.3,2282.9,7.707]
[1750689854499,0.9521,2283.3,2282.9,12.08724374]
[1750689854814,0.9521,2283.3,2282.9,7.707]
[1750689855913,10.0,2283.2,2282.6,4.3808763]
[1750689856119,10.0,2283.2,2282.6,12.0858763]
[1750689856288,10.9521,2283.3,2282.9,4.38034132]
[1750689857011,10.9521,2283.3,2282.8,4.38048647]
[1750689857214,10.9521,2283.3,2282.8,12.08448647]
[1750689857931,10.9521,2283.3,2282.8,7.704]
[1750689858127,10.9521,2283.3,2282.9,4.3802112]
[1750689858332,10.0,2283.3,2282.8,8.5657]
[1750689858628,10.0,2283.3,2283.2,4.37981779]
[1750689858851,0.9369,2283.9,2283.3,0.8617]
[1750689859033,7.76,2284.2,2283.4,4.37943417]
[1750689859192,0.9369,2284.3,2283.9,4.3783885]
[1750689859528,10.9369,2284.3,2284.1,4.37805649]
[1750689859732,0.9369,2284.3,2284.1,4.37802168]
[1750689860028,7.76,2284.4,2284.1,4.37800788]
[1750689860230,10.0,2284.3,2284.1,4.37800788]
[1750689860438,7.76,2284.4,2284.2,4.37790035]
[1750689860605,8.668,2284.9,2284.3,7.702]